[Event "Late-Titled-Tuesday-Blitz-February-27-2024"]
[Site "Chess.com"]
[Date "2024.02.27"]
[Round "5"]
[White "Nf3c5"]
[Black "Inepton_Fermion"]
[Result "0-1"]
[WhiteElo "2555"]
[BlackElo "2449"]
[TimeControl "180+1"]
[EndTime "14:56:37 PST"]
[Termination "Inepton_Fermion won on time"]

1. e4 {[%clk 0:03:00.9]} 1... c5 {[%clk 0:02:55.2]} 2. Nf3 {[%clk 0:03:00]} 2...
e6 {[%clk 0:02:55]} 3. d3 {[%clk 0:02:52.1]} 3... a6 {[%clk 0:02:50.2]} 4. g3
{[%clk 0:02:51.5]} 4... b5 {[%clk 0:02:50.5]} 5. Bg2 {[%clk 0:02:51.3]} 5... Bb7
{[%clk 0:02:51.2]} 6. O-O {[%clk 0:02:51]} 6... d6 {[%clk 0:02:50.6]} 7. a4
{[%clk 0:02:46.8]} 7... Nf6 {[%clk 0:02:48.9]} 8. Nc3 {[%clk 0:02:35.9]} 8... b4
{[%clk 0:02:46.5]} 9. Ne2 {[%clk 0:02:24.7]} 9... Be7 {[%clk 0:02:46.7]} 10. h3
{[%clk 0:02:19.3]} 10... O-O {[%clk 0:02:44.9]} 11. g4 {[%clk 0:02:15.1]} 11...
c4 {[%clk 0:02:42.3]} 12. b3 {[%clk 0:02:10.6]} 12... cxd3 {[%clk 0:02:38]} 13.
cxd3 {[%clk 0:02:09]} 13... Nc6 {[%clk 0:02:26.4]} 14. Ng3 {[%clk 0:02:03.3]}
14... Rc8 {[%clk 0:02:20.9]} 15. d4 {[%clk 0:01:58.7]} 15... d5 {[%clk
0:02:12.9]} 16. e5 {[%clk 0:01:53.4]} 16... Ne4 {[%clk 0:02:12.8]} 17. Nh5
{[%clk 0:01:43.8]} 17... f6 {[%clk 0:02:00.1]} 18. exf6 {[%clk 0:01:40.3]} 18...
Bxf6 {[%clk 0:01:47.1]} 19. Be3 {[%clk 0:01:36.5]} 19... Na5 {[%clk 0:01:37.1]}
20. Ne5 {[%clk 0:01:25.2]} 20... Bg5 {[%clk 0:01:15.1]} 21. f4 {[%clk
0:01:17.3]} 21... Be7 {[%clk 0:01:09]} 22. g5 {[%clk 0:00:50.9]} 22... Rc3
{[%clk 0:01:07.5]} 23. Rf3 {[%clk 0:00:46.2]} 23... Nxb3 {[%clk 0:01:04.9]} 24.
Rb1 {[%clk 0:00:45.1]} 24... Na5 {[%clk 0:00:56.7]} 25. h4 {[%clk 0:00:41.3]}
25... Nc4 {[%clk 0:00:55.1]} 26. Qe1 {[%clk 0:00:38.3]} 26... Nxe3 {[%clk
0:00:45.3]} 27. Rxe3 {[%clk 0:00:36.5]} 27... Rxe3 {[%clk 0:00:26.9]} 28. Qxe3
{[%clk 0:00:37.4]} 28... Qe8 {[%clk 0:00:27.1]} 29. Bxe4 {[%clk 0:00:22.1]}
29... dxe4 {[%clk 0:00:26.2]} 30. Ng3 {[%clk 0:00:22.7]} 30... Qxa4 {[%clk
0:00:25]} 31. h5 {[%clk 0:00:16.4]} 31... Qc2 {[%clk 0:00:23.4]} 32. Rc1 {[%clk
0:00:16.8]} 32... Qb2 {[%clk 0:00:20.5]} 33. Rc7 {[%clk 0:00:16.7]} 33... Qa3
{[%clk 0:00:13.3]} 34. Qxa3 {[%clk 0:00:13.8]} 34... bxa3 {[%clk 0:00:14.2]} 35.
Rc1 {[%clk 0:00:10.1]} 35... a2 {[%clk 0:00:14.1]} 36. Ra1 {[%clk 0:00:10]}
36... Bd5 {[%clk 0:00:14.5]} 37. Ne2 {[%clk 0:00:08.2]} 37... Bb4 {[%clk
0:00:12.7]} 38. Nd7 {[%clk 0:00:06.7]} 38... Rc8 {[%clk 0:00:11.9]} 39. Nc5
{[%clk 0:00:07.1]} 39... Bxc5 {[%clk 0:00:11.4]} 40. dxc5 {[%clk 0:00:07.5]}
40... Rxc5 {[%clk 0:00:12.3]} 41. Kf2 {[%clk 0:00:07.9]} 41... Rb5 {[%clk
0:00:12.6]} 42. Nc3 {[%clk 0:00:06.3]} 42... Rb2+ {[%clk 0:00:12.8]} 43. Ke3
{[%clk 0:00:06.3]} 43... Kf7 {[%clk 0:00:12.6]} 44. Kd4 {[%clk 0:00:06]} 44...
Rd2+ {[%clk 0:00:11.2]} 45. Ke5 {[%clk 0:00:04]} 45... e3 {[%clk 0:00:10.6]} 0-1

[Event "Late-Titled-Tuesday-Blitz-February-27-2024"]
[Site "Chess.com"]
[Date "2024.02.27"]
[Round "5"]
[White "PNEPaul"]
[Black "jodarmarlon1985"]
[Result "0-1"]
[WhiteElo "2037"]
[BlackElo "2249"]
[TimeControl "180+1"]
[EndTime "14:56:38 PST"]
[Termination "jodarmarlon1985 won on time"]

1. e4 {[%clk 0:03:00.9]} 1... e5 {[%clk 0:02:59.7]} 2. Nf3 {[%clk 0:03:00.1]}
2... Nc6 {[%clk 0:03:00]} 3. Bc4 {[%clk 0:02:59.8]} 3... Nf6 {[%clk 0:02:59.9]}
4. d4 {[%clk 0:02:59.1]} 4... exd4 {[%clk 0:02:59.9]} 5. O-O {[%clk 0:02:58.6]}
5... Nxe4 {[%clk 0:02:59.8]} 6. Re1 {[%clk 0:02:58.2]} 6... d5 {[%clk
0:02:59.5]} 7. Bxd5 {[%clk 0:02:58.4]} 7... Qxd5 {[%clk 0:03:00.4]} 8. Nc3
{[%clk 0:02:58.3]} 8... Qh5 {[%clk 0:02:56.5]} 9. Nxe4 {[%clk 0:02:57.8]} 9...
Be6 {[%clk 0:02:56.8]} 10. Neg5 {[%clk 0:02:55.9]} 10... O-O-O {[%clk 0:02:56]}
11. Nxe6 {[%clk 0:02:55.7]} 11... fxe6 {[%clk 0:02:56.8]} 12. Bg5 {[%clk
0:02:55.5]} 12... Rd5 {[%clk 0:02:28.1]} 13. Qe2 {[%clk 0:02:50.1]} 13... e5
{[%clk 0:02:06.6]} 14. Qe4 {[%clk 0:02:46.9]} 14... Qf7 {[%clk 0:02:06.2]} 15.
Bd2 {[%clk 0:02:22]} 15... Be7 {[%clk 0:01:52.7]} 16. c4 {[%clk 0:02:17.6]}
16... dxc3 {[%clk 0:01:50.9]} 17. Bxc3 {[%clk 0:02:17.3]} 17... Bf6 {[%clk
0:01:50.3]} 18. Qf5+ {[%clk 0:01:59.2]} 18... Qd7 {[%clk 0:01:49.6]} 19. Qe4
{[%clk 0:01:51.3]} 19... h6 {[%clk 0:01:48.8]} 20. Rac1 {[%clk 0:01:47.1]} 20...
Rd8 {[%clk 0:01:40.9]} 21. h3 {[%clk 0:01:26.1]} 21... Nd4 {[%clk 0:01:29]} 22.
Nxd4 {[%clk 0:01:03.5]} 22... exd4 {[%clk 0:01:28.5]} 23. Bd2 {[%clk 0:00:57.9]}
23... Qf5 {[%clk 0:01:02.7]} 24. Qe2 {[%clk 0:00:43.9]} 24... d3 {[%clk
0:00:58.5]} 25. Qd1 {[%clk 0:00:43.5]} 25... Kb8 {[%clk 0:00:46.6]} 26. Qa4
{[%clk 0:00:39]} 26... Bd4 {[%clk 0:00:41.5]} 27. Rf1 {[%clk 0:00:34]} 27... Bb6
{[%clk 0:00:40]} 28. Qb3 {[%clk 0:00:21.8]} 28... g5 {[%clk 0:00:38.5]} 29. Rce1
{[%clk 0:00:18.7]} 29... h5 {[%clk 0:00:35.1]} 30. Re7 {[%clk 0:00:17.7]} 30...
g4 {[%clk 0:00:31.1]} 31. hxg4 {[%clk 0:00:16.8]} 31... hxg4 {[%clk 0:00:32]}
32. Rg7 {[%clk 0:00:16.7]} 32... R5d7 {[%clk 0:00:27.4]} 33. Rg5 {[%clk
0:00:15.9]} 33... Qe4 {[%clk 0:00:24.1]} 34. Re1 {[%clk 0:00:13.5]} 34... Qd4
{[%clk 0:00:12.9]} 35. Rf1 {[%clk 0:00:13.4]} 35... a5 {[%clk 0:00:10.9]} 36.
Be3 {[%clk 0:00:13.4]} 36... Qb4 {[%clk 0:00:10.6]} 37. Bxb6 {[%clk 0:00:12.9]}
37... Qxb6 {[%clk 0:00:10.1]} 38. Rb5 {[%clk 0:00:11.1]} 38... Qa6 {[%clk
0:00:08.6]} 39. Rd1 {[%clk 0:00:09.1]} 39... d2 {[%clk 0:00:08.6]} 40. a4 {[%clk
0:00:07.3]} 40... g3 {[%clk 0:00:06.1]} 41. f3 {[%clk 0:00:06.3]} 41... Qc6
{[%clk 0:00:05.7]} 42. Qe3 {[%clk 0:00:03.3]} 42... b6 {[%clk 0:00:05]} 43. Kf1
{[%clk 0:00:01.9]} 43... Qc4+ {[%clk 0:00:04.6]} 44. Qe2 {[%clk 0:00:01.2]}
44... Qxa4 {[%clk 0:00:04.6]} 0-1

[Event "Late-Titled-Tuesday-Blitz-February-27-2024"]
[Site "Chess.com"]
[Date "2024.02.27"]
[Round "5"]
[White "FabianoCaruana"]
[Black "TigrVShlyape"]
[Result "1-0"]
[WhiteElo "3060"]
[BlackElo "2907"]
[TimeControl "180+1"]
[EndTime "14:56:39 PST"]
[Termination "FabianoCaruana won on time"]

1. e4 {[%clk 0:03:00.9]} 1... c5 {[%clk 0:02:52.3]} 2. Nf3 {[%clk 0:03:01]} 2...
e6 {[%clk 0:02:52.1]} 3. d4 {[%clk 0:02:59.6]} 3... cxd4 {[%clk 0:02:52.4]} 4.
Nxd4 {[%clk 0:03:00.5]} 4... a6 {[%clk 0:02:52.8]} 5. Nc3 {[%clk 0:03:00.1]}
5... b5 {[%clk 0:02:52.4]} 6. Bd3 {[%clk 0:02:59.1]} 6... Qb6 {[%clk 0:02:52.2]}
7. Nf3 {[%clk 0:02:59.4]} 7... Qc7 {[%clk 0:02:51.2]} 8. O-O {[%clk 0:02:59]}
8... Bb7 {[%clk 0:02:46.1]} 9. Re1 {[%clk 0:02:59.4]} 9... Be7 {[%clk
0:02:45.4]} 10. a4 {[%clk 0:02:51.6]} 10... b4 {[%clk 0:02:44.5]} 11. Ne2 {[%clk
0:02:51.9]} 11... Nf6 {[%clk 0:02:39.6]} 12. e5 {[%clk 0:02:37.3]} 12... Ng4
{[%clk 0:01:55.4]} 13. Ng3 {[%clk 0:02:35.8]} 13... Bc5 {[%clk 0:01:51.2]} 14.
Rf1 {[%clk 0:01:36.9]} 14... Nxe5 {[%clk 0:01:44.2]} 15. Nxe5 {[%clk 0:01:37.8]}
15... Qxe5 {[%clk 0:01:43.5]} 16. Kh1 {[%clk 0:01:36.1]} 16... O-O {[%clk
0:01:32.6]} 17. f4 {[%clk 0:01:35]} 17... Qd5 {[%clk 0:01:32.6]} 18. Qe2 {[%clk
0:01:29.7]} 18... f5 {[%clk 0:01:31.7]} 19. Bc4 {[%clk 0:01:22.7]} 19... Qd4
{[%clk 0:01:21.8]} 20. Rd1 {[%clk 0:01:12.6]} 20... Qf2 {[%clk 0:01:17]} 21.
Qxf2 {[%clk 0:01:12.6]} 21... Bxf2 {[%clk 0:01:16.8]} 22. a5 {[%clk 0:01:08.3]}
22... d5 {[%clk 0:01:05.5]} 23. Bd3 {[%clk 0:01:07.9]} 23... Nd7 {[%clk
0:00:56.9]} 24. Bd2 {[%clk 0:01:03.8]} 24... Bc5 {[%clk 0:00:56.9]} 25. Ne2
{[%clk 0:01:00.8]} 25... Nf6 {[%clk 0:00:55.2]} 26. Ra4 {[%clk 0:00:28.2]} 26...
Ng4 {[%clk 0:00:53.2]} 27. Be1 {[%clk 0:00:24.3]} 27... Bc6 {[%clk 0:00:52.3]}
28. Raa1 {[%clk 0:00:24.1]} 28... Rfb8 {[%clk 0:00:48.7]} 29. Nc1 {[%clk
0:00:23.6]} 29... Ne3 {[%clk 0:00:45.2]} 30. Rd2 {[%clk 0:00:22.9]} 30... Nc4
{[%clk 0:00:45.4]} 31. Re2 {[%clk 0:00:21.7]} 31... Kf7 {[%clk 0:00:45.2]} 32.
Nb3 {[%clk 0:00:21.7]} 32... Ba7 {[%clk 0:00:40.8]} 33. Rb1 {[%clk 0:00:17.5]}
33... Ba4 {[%clk 0:00:29.7]} 34. Nd2 {[%clk 0:00:09]} 34... Nd6 {[%clk
0:00:22.4]} 35. Nf3 {[%clk 0:00:08.6]} 35... Ne4 {[%clk 0:00:19.6]} 36. b3
{[%clk 0:00:09]} 36... Bb5 {[%clk 0:00:19.2]} 37. Ne5+ {[%clk 0:00:07.9]} 37...
Ke8 {[%clk 0:00:16.3]} 38. g3 {[%clk 0:00:06.6]} 38... Bc5 {[%clk 0:00:14.1]}
39. Kg2 {[%clk 0:00:06.4]} 39... Bd6 {[%clk 0:00:13.6]} 40. Nf3 {[%clk
0:00:06.3]} 40... Kf7 {[%clk 0:00:12.5]} 41. Nd4 {[%clk 0:00:06.7]} 41... Bxd3
{[%clk 0:00:09.4]} 42. cxd3 {[%clk 0:00:06.8]} 42... Nc5 {[%clk 0:00:06.7]} 43.
Nc6 {[%clk 0:00:04.4]} 43... Rb5 {[%clk 0:00:04.9]} 44. Bxb4 {[%clk 0:00:03.8]}
1-0

[Event "Late-Titled-Tuesday-Blitz-February-27-2024"]
[Site "Chess.com"]
[Date "2024.02.27"]
[Round "5"]
[White "Kgutierrez95"]
[Black "picturesquecheck"]
[Result "1/2-1/2"]
[WhiteElo "2190"]
[BlackElo "2416"]
[TimeControl "180+1"]
[EndTime "14:56:39 PST"]
[Termination "Game drawn - insufficient material"]

1. e4 {[%clk 0:02:45.1]} 1... c5 {[%clk 0:02:59.4]} 2. Nf3 {[%clk 0:02:44.7]}
2... Nc6 {[%clk 0:02:56.5]} 3. d4 {[%clk 0:02:44.8]} 3... cxd4 {[%clk
0:02:56.8]} 4. Nxd4 {[%clk 0:02:45.7]} 4... Nf6 {[%clk 0:02:57.2]} 5. Nc3 {[%clk
0:02:45]} 5... d6 {[%clk 0:02:57.8]} 6. Be3 {[%clk 0:02:43.1]} 6... e5 {[%clk
0:02:57.3]} 7. Nf3 {[%clk 0:02:37.3]} 7... h6 {[%clk 0:02:56.1]} 8. a3 {[%clk
0:02:34.8]} 8... Be7 {[%clk 0:02:56.1]} 9. Bc4 {[%clk 0:02:33.8]} 9... O-O
{[%clk 0:02:55.3]} 10. h3 {[%clk 0:02:33.1]} 10... Be6 {[%clk 0:02:55.5]} 11.
Bxe6 {[%clk 0:02:17.5]} 11... fxe6 {[%clk 0:02:54.2]} 12. O-O {[%clk 0:02:18]}
12... d5 {[%clk 0:02:52.2]} 13. exd5 {[%clk 0:02:16]} 13... exd5 {[%clk
0:02:52.2]} 14. Ne2 {[%clk 0:02:10.2]} 14... d4 {[%clk 0:02:51.6]} 15. Bc1
{[%clk 0:02:06.3]} 15... Nd5 {[%clk 0:02:46.3]} 16. Ng3 {[%clk 0:02:04.4]} 16...
Kh8 {[%clk 0:02:36.9]} 17. Qd3 {[%clk 0:01:49.9]} 17... Nf4 {[%clk 0:02:30.7]}
18. Bxf4 {[%clk 0:01:48.3]} 18... Rxf4 {[%clk 0:02:31.6]} 19. Rae1 {[%clk
0:01:42]} 19... Qd5 {[%clk 0:02:14.4]} 20. c3 {[%clk 0:01:17.8]} 20... Bc5
{[%clk 0:01:59.2]} 21. cxd4 {[%clk 0:00:52.6]} 21... Bxd4 {[%clk 0:01:57.5]} 22.
Qg6 {[%clk 0:00:42.5]} 22... Ne7 {[%clk 0:01:46.4]} 23. Qc2 {[%clk 0:00:37.9]}
23... Rxf3 {[%clk 0:01:43.5]} 24. gxf3 {[%clk 0:00:37.4]} 24... Qxf3 {[%clk
0:01:42.8]} 25. Kh2 {[%clk 0:00:28.8]} 25... Rf8 {[%clk 0:01:38]} 26. Qe4 {[%clk
0:00:19.2]} 26... Qf7 {[%clk 0:01:21.9]} 27. f4 {[%clk 0:00:13.9]} 27... exf4
{[%clk 0:01:17.5]} 28. Qxe7 {[%clk 0:00:06.9]} 28... fxg3+ {[%clk 0:01:16.3]}
29. Kg2 {[%clk 0:00:07]} 29... Qd5+ {[%clk 0:01:10.1]} 30. Qe4 {[%clk
0:00:03.9]} 30... Qxe4+ {[%clk 0:01:02.8]} 31. Rxe4 {[%clk 0:00:04.6]} 31...
Rxf1 {[%clk 0:01:03.2]} 32. Kxf1 {[%clk 0:00:04.4]} 32... Bxb2 {[%clk
0:01:03.7]} 33. a4 {[%clk 0:00:04.5]} 33... a5 {[%clk 0:01:01.9]} 34. Re7 {[%clk
0:00:04]} 34... b6 {[%clk 0:01:01.9]} 35. Rd7 {[%clk 0:00:03.6]} 35... Ba3
{[%clk 0:01:00.1]} 36. Kg2 {[%clk 0:00:02.6]} 36... Bc5 {[%clk 0:01:00.2]} 37.
Kxg3 {[%clk 0:00:02.9]} 37... Kh7 {[%clk 0:01:01.1]} 38. Kg4 {[%clk 0:00:02.7]}
38... Kg6 {[%clk 0:01:02]} 39. h4 {[%clk 0:00:03.1]} 39... h5+ {[%clk
0:01:02.4]} 40. Kh3 {[%clk 0:00:02.7]} 40... Kf5 {[%clk 0:01:02.8]} 41. Rxg7
{[%clk 0:00:02.4]} 41... Ke4 {[%clk 0:00:59]} 42. Rg5 {[%clk 0:00:02.5]} 42...
Kd3 {[%clk 0:00:56.7]} 43. Rxh5 {[%clk 0:00:03.2]} 43... Kc3 {[%clk 0:00:56.8]}
44. Rg5 {[%clk 0:00:03.8]} 44... Kb4 {[%clk 0:00:56.8]} 45. Rg4+ {[%clk
0:00:03.4]} 45... Kb3 {[%clk 0:00:51.2]} 46. h5 {[%clk 0:00:04.1]} 46... b5
{[%clk 0:00:37.9]} 47. axb5 {[%clk 0:00:03]} 47... a4 {[%clk 0:00:38.3]} 48.
Rxa4 {[%clk 0:00:01.8]} 48... Kxa4 {[%clk 0:00:38.1]} 49. h6 {[%clk 0:00:01.2]}
49... Kxb5 {[%clk 0:00:38]} 50. Kg4 {[%clk 0:00:01.9]} 50... Bd4 {[%clk
0:00:38.7]} 51. Kf5 {[%clk 0:00:02.8]} 51... Kc5 {[%clk 0:00:39.2]} 52. h7
{[%clk 0:00:03.7]} 52... Kc4 {[%clk 0:00:39.4]} 53. h8=Q {[%clk 0:00:04.5]}
53... Bxh8 {[%clk 0:00:39.3]} 1/2-1/2

[Event "Late-Titled-Tuesday-Blitz-February-27-2024"]
[Site "Chess.com"]
[Date "2024.02.27"]
[Round "5"]
[White "CURRUTACO59"]
[Black "Peroncio"]
[Result "0-1"]
[WhiteElo "2253"]
[BlackElo "2436"]
[TimeControl "180+1"]
[EndTime "14:56:45 PST"]
[Termination "Peroncio won on time"]

1. Nf3 {[%clk 0:02:58.3]} 1... c5 {[%clk 0:02:53.5]} 2. e3 {[%clk 0:02:57.9]}
2... Nc6 {[%clk 0:02:49.2]} 3. d4 {[%clk 0:02:57.9]} 3... d5 {[%clk 0:02:48.8]}
4. c4 {[%clk 0:02:56.8]} 4... cxd4 {[%clk 0:02:48.3]} 5. cxd5 {[%clk 0:02:56.9]}
5... Qxd5 {[%clk 0:02:48]} 6. Nc3 {[%clk 0:02:56.2]} 6... Qd8 {[%clk 0:02:45.9]}
7. exd4 {[%clk 0:02:54.9]} 7... e6 {[%clk 0:02:42.5]} 8. d5 {[%clk 0:02:32.5]}
8... exd5 {[%clk 0:02:40.9]} 9. Qxd5 {[%clk 0:02:25.1]} 9... Be6 {[%clk
0:02:41]} 10. Qb5 {[%clk 0:02:08]} 10... Rb8 {[%clk 0:02:25.9]} 11. Bf4 {[%clk
0:02:04.7]} 11... Rc8 {[%clk 0:02:13.1]} 12. Qxb7 {[%clk 0:01:57.3]} 12... Qb6
{[%clk 0:02:10]} 13. Qxb6 {[%clk 0:01:51.2]} 13... axb6 {[%clk 0:02:10.9]} 14.
Bb5 {[%clk 0:01:50.5]} 14... Bb4 {[%clk 0:02:07.2]} 15. O-O {[%clk 0:01:35.4]}
15... Ne7 {[%clk 0:02:07.2]} 16. Rfc1 {[%clk 0:01:27.5]} 16... O-O {[%clk
0:02:06]} 17. a3 {[%clk 0:01:22.5]} 17... Bxc3 {[%clk 0:01:58.5]} 18. Rxc3
{[%clk 0:01:23.4]} 18... Nd5 {[%clk 0:01:45]} 19. Rxc6 {[%clk 0:01:19.4]} 19...
Nxf4 {[%clk 0:01:45.1]} 20. Rxb6 {[%clk 0:01:14.1]} 20... Rc2 {[%clk 0:01:35.6]}
21. b4 {[%clk 0:01:01.9]} 21... Bd5 {[%clk 0:01:30.6]} 22. Nd4 {[%clk
0:00:54.7]} 22... Rd2 {[%clk 0:01:25.9]} 23. Nc6 {[%clk 0:00:46.3]} 23... Bxg2
{[%clk 0:01:19.7]} 24. Ne7+ {[%clk 0:00:41.3]} 24... Kh8 {[%clk 0:01:19.4]} 25.
a4 {[%clk 0:00:34.3]} 25... Bf3 {[%clk 0:01:09.9]} 26. Bf1 {[%clk 0:00:30.7]}
26... Re8 {[%clk 0:00:53.4]} 27. Nf5 {[%clk 0:00:27.8]} 27... g6 {[%clk
0:00:45.2]} 28. Ng3 {[%clk 0:00:19.8]} 28... h5 {[%clk 0:00:44.5]} 29. h4 {[%clk
0:00:19.2]} 29... g5 {[%clk 0:00:38.1]} 30. hxg5 {[%clk 0:00:15.5]} 30... h4
{[%clk 0:00:38.4]} 31. Rh6+ {[%clk 0:00:13.9]} 31... Kg7 {[%clk 0:00:32.3]} 32.
Rxh4 {[%clk 0:00:14.8]} 32... Ng6 {[%clk 0:00:32.3]} 33. Rc4 {[%clk 0:00:14]}
33... Rh8 {[%clk 0:00:30]} 34. Bg2 {[%clk 0:00:12.3]} 34... Bxg2 {[%clk
0:00:20.1]} 35. Kxg2 {[%clk 0:00:11.7]} 35... Nh4+ {[%clk 0:00:20.8]} 36. Kf1
{[%clk 0:00:06.9]} 36... Nf3 {[%clk 0:00:19.5]} 37. Kg2 {[%clk 0:00:05.3]} 37...
Nh4+ {[%clk 0:00:19.4]} 38. Kf1 {[%clk 0:00:05.4]} 38... Nf3 {[%clk 0:00:18.8]}
39. Ra3 {[%clk 0:00:05.4]} 39... Nxg5 {[%clk 0:00:06.2]} 40. Rc5 {[%clk
0:00:04.8]} 40... Ne6 {[%clk 0:00:06]} 41. Re5 {[%clk 0:00:04.1]} 41... Rhd8
{[%clk 0:00:06.3]} 42. Kg2 {[%clk 0:00:01.4]} 42... Nf4+ {[%clk 0:00:06.3]} 43.
Kf3 {[%clk 0:00:01.4]} 43... Ng6 {[%clk 0:00:06.9]} 0-1

[Event "Late-Titled-Tuesday-Blitz-February-27-2024"]
[Site "Chess.com"]
[Date "2024.02.27"]
[Round "5"]
[White "GoltsevDmitry2000"]
[Black "EvilMorty23"]
[Result "0-1"]
[WhiteElo "2758"]
[BlackElo "2575"]
[TimeControl "180+1"]
[EndTime "14:56:48 PST"]
[Termination "EvilMorty23 won by checkmate"]

1. e4 {[%clk 0:02:59]} 1... e6 {[%clk 0:03:00.2]} 2. d4 {[%clk 0:02:57.7]} 2...
d5 {[%clk 0:03:00.4]} 3. exd5 {[%clk 0:02:58.6]} 3... exd5 {[%clk 0:03:00.6]} 4.
Nf3 {[%clk 0:02:59.5]} 4... Nc6 {[%clk 0:03:00.5]} 5. c4 {[%clk 0:03:00.4]} 5...
Bg4 {[%clk 0:02:51.7]} 6. Be2 {[%clk 0:02:52.6]} 6... dxc4 {[%clk 0:02:50.3]} 7.
Bxc4 {[%clk 0:02:49.5]} 7... Qe7+ {[%clk 0:02:37.4]} 8. Be3 {[%clk 0:02:48]}
8... Bxf3 {[%clk 0:02:08.4]} 9. Qxf3 {[%clk 0:02:45.4]} 9... Nxd4 {[%clk
0:02:08.5]} 10. Qxf7+ {[%clk 0:02:12.1]} 10... Qxf7 {[%clk 0:02:06.1]} 11. Bxf7+
{[%clk 0:02:13]} 11... Kxf7 {[%clk 0:02:07]} 12. Bxd4 {[%clk 0:02:13.7]} 12...
Re8+ {[%clk 0:02:04.6]} 13. Be3 {[%clk 0:02:11.7]} 13... Bc5 {[%clk 0:02:03.2]}
14. Ke2 {[%clk 0:02:12.2]} 14... Bxe3 {[%clk 0:02:03.4]} 15. fxe3 {[%clk
0:02:11.2]} 15... Nf6 {[%clk 0:02:04.3]} 16. Nc3 {[%clk 0:02:06.3]} 16... c6
{[%clk 0:02:02.2]} 17. Rhf1 {[%clk 0:02:03.5]} 17... Re7 {[%clk 0:02:02.5]} 18.
Rad1 {[%clk 0:02:00.6]} 18... Rhe8 {[%clk 0:02:02.4]} 19. Rd3 {[%clk 0:02:01.2]}
19... Kg8 {[%clk 0:02:01.6]} 20. h3 {[%clk 0:01:59]} 20... h6 {[%clk 0:01:58.7]}
21. g4 {[%clk 0:01:54.5]} 21... b5 {[%clk 0:01:53.3]} 22. a3 {[%clk 0:01:54]}
22... a5 {[%clk 0:01:53.3]} 23. Rf4 {[%clk 0:01:52.2]} 23... Nd7 {[%clk
0:01:44.2]} 24. e4 {[%clk 0:01:24.9]} 24... b4 {[%clk 0:01:28.7]} 25. axb4
{[%clk 0:01:17]} 25... axb4 {[%clk 0:01:29.6]} 26. Na4 {[%clk 0:01:17.5]} 26...
Rxe4+ {[%clk 0:01:20.5]} 27. Rxe4 {[%clk 0:01:18.4]} 27... Rxe4+ {[%clk
0:01:20.8]} 28. Kf3 {[%clk 0:01:18.2]} 28... Nf6 {[%clk 0:01:20]} 29. b3 {[%clk
0:01:06]} 29... Kf7 {[%clk 0:01:09.7]} 30. Nb2 {[%clk 0:00:42.8]} 30... Ke7
{[%clk 0:00:51.7]} 31. Nc4 {[%clk 0:00:39.4]} 31... Re1 {[%clk 0:00:50.9]} 32.
Rd6 {[%clk 0:00:33.8]} 32... Rb1 {[%clk 0:00:48.3]} 33. Rd3 {[%clk 0:00:14.8]}
33... Nd5 {[%clk 0:00:41.3]} 34. Ke4 {[%clk 0:00:14.2]} 34... Nc3+ {[%clk
0:00:39.8]} 35. Ke5 {[%clk 0:00:14.6]} 35... Rxb3 {[%clk 0:00:38.7]} 36. Na5
{[%clk 0:00:13.8]} 36... Rb1 {[%clk 0:00:34.8]} 37. Nxc6+ {[%clk 0:00:14.2]}
37... Kf7 {[%clk 0:00:35]} 38. Rd7+ {[%clk 0:00:08.8]} 38... Kg6 {[%clk
0:00:32.5]} 39. Ne7+ {[%clk 0:00:08.9]} 39... Kg5 {[%clk 0:00:30.4]} 40. Nf5
{[%clk 0:00:07.1]} 40... Re1+ {[%clk 0:00:27]} 41. Kd6 {[%clk 0:00:02.9]} 41...
Rd1+ {[%clk 0:00:27.4]} 42. Ke6 {[%clk 0:00:02.1]} 42... Rxd7 {[%clk 0:00:27.5]}
43. Kxd7 {[%clk 0:00:03]} 43... b3 {[%clk 0:00:27.5]} 44. h4+ {[%clk 0:00:02.5]}
44... Kf6 {[%clk 0:00:24.8]} 45. Ng3 {[%clk 0:00:01.4]} 45... b2 {[%clk
0:00:24.6]} 46. g5+ {[%clk 0:00:02.3]} 46... hxg5 {[%clk 0:00:24.2]} 47. hxg5+
{[%clk 0:00:03.2]} 47... Kxg5 {[%clk 0:00:24.7]} 48. Nf1 {[%clk 0:00:03.1]}
48... b1=Q {[%clk 0:00:25]} 49. Ne3 {[%clk 0:00:03.9]} 49... Qd3+ {[%clk
0:00:25.1]} 50. Nd5 {[%clk 0:00:03.7]} 50... Qxd5+ {[%clk 0:00:25.3]} 51. Ke7
{[%clk 0:00:04.6]} 51... Qb7+ {[%clk 0:00:21]} 52. Ke6 {[%clk 0:00:04.7]} 52...
Qc6+ {[%clk 0:00:20.3]} 53. Kf7 {[%clk 0:00:04.6]} 53... Qf6+ {[%clk 0:00:20.1]}
54. Kg8 {[%clk 0:00:04.8]} 54... Qe7 {[%clk 0:00:18.7]} 55. Kh7 {[%clk
0:00:05.2]} 55... g6+ {[%clk 0:00:18.6]} 56. Kg8 {[%clk 0:00:06.1]} 56... Kh6
{[%clk 0:00:18.9]} 57. Kh8 {[%clk 0:00:06.4]} 57... Qf8# {[%clk 0:00:19.3]} 0-1